[Event "Elitserien 2019/2020, round 7-9"]
[Site "Elite stadshotellet, Kungsgatan 6, Vaxjo, Sweden"]
[Date "2020.10.17"]
[Round "2.1"]
[White "Cuenca Jimenez, Jose Fernando"]
[Black "Grigorov, Grigor"]
[Result "1/2-1/2"]
[TimeControl "90 minutes for 40 moves + 30 minutes for the rest of the game + 30 seconds per move from move one."]
[WhiteTitle "GM"]
[BlackTitle "GM"]
[WhiteFideId "2255570"]
[BlackFideId "2907313"]
[WhiteElo "2538"]
[BlackElo "2507"]

1. d4 {[%clk 01:30:56]} {[%emt 00:00:03]} Nf6 {[%clk 01:30:53]} {[%emt
00:00:07]} 2. c4 {[%clk 01:31:21]} {[%emt 00:00:05]} e6 {[%clk 01:31:17]}
{[%emt 00:00:07]} 3. Nf3 {[%clk 01:31:29]} {[%emt 00:00:22]} b6 {[%clk
01:31:36]} {[%emt 00:00:11]} 4. g3 {[%clk 01:31:12]} {[%emt 00:00:46]} Bb7
{[%clk 01:31:58]} {[%emt 00:00:07]} 5. Bg2 {[%clk 01:31:36]} {[%emt 00:00:06]}
Be7 {[%clk 01:32:22]} {[%emt 00:00:06]} 6. O-O {[%clk 01:31:48]} {[%emt
00:00:19]} O-O {[%clk 01:32:45]} {[%emt 00:00:07]} 7. Nc3 {[%clk 01:31:41]}
{[%emt 00:00:37]} Ne4 {[%clk 01:33:06]} {[%emt 00:00:09]} 8. Bd2 {[%clk
01:31:05]} {[%emt 00:01:06]} Bf6 {[%clk 01:32:31]} {[%emt 00:01:05]} 9. Be1
{[%clk 01:31:28]} {[%emt 00:00:07]} Nxc3 {[%clk 01:32:03]} {[%emt 00:00:58]} 10.
Bxc3 {[%clk 01:31:50]} {[%emt 00:00:09]} Be4 {[%clk 01:32:21]} {[%emt
00:00:10]} 11. Rc1 {[%clk 01:31:56]} {[%emt 00:00:25]} d5 {[%clk 01:25:30]}
{[%emt 00:07:21]} 12. Qa4 {[%clk 01:31:43]} {[%emt 00:00:43]} Qd7 {[%clk
01:24:14]} {[%emt 00:01:44]} 13. Qxd7 {[%clk 01:30:23]} {[%emt 00:01:53]} Nxd7
{[%clk 01:24:36]} {[%emt 00:00:07]} 14. cxd5 {[%clk 01:27:47]} {[%emt
00:03:06]} Bxd5 {[%clk 01:22:00]} {[%emt 00:03:05]} 15. Nd2 {[%clk 01:28:05]}
{[%emt 00:00:13]} Bxg2 {[%clk 01:22:13]} {[%emt 00:00:17]} 16. Kxg2 {[%clk
01:28:30]} {[%emt 00:00:05]} c5 {[%clk 01:21:32]} {[%emt 00:01:11]} 17. dxc5
{[%clk 01:28:02]} {[%emt 00:00:58]} Bxc3 {[%clk 01:13:47]} {[%emt 00:08:15]} 18.
Rxc3 {[%clk 01:28:14]} {[%emt 00:00:18]} Nxc5 {[%clk 01:14:11]} {[%emt
00:00:06]} 19. b4 {[%clk 01:23:57]} {[%emt 00:04:47]} Rfd8 {[%clk 01:14:00]}
{[%emt 00:00:40]} 20. Nf3 {[%clk 01:19:09]} {[%emt 00:05:19]} Ne4 {[%clk
01:12:31]} {[%emt 00:01:58]} 21. Rc7 {[%clk 01:15:11]} {[%emt 00:04:29]} a5
{[%clk 01:10:03]} {[%emt 00:02:58]} 22. b5 {[%clk 01:08:38]} {[%emt 00:07:04]}
Rd5 {[%clk 01:07:16]} {[%emt 00:03:17]} 23. Rfc1 {[%clk 01:07:18]} {[%emt
00:01:50]} Kf8 {[%clk 01:02:26]} {[%emt 00:05:19]} 24. a4 {[%clk 01:04:19]}
{[%emt 00:03:30]} Nc5 {[%clk 00:55:56]} {[%emt 00:06:59]} 25. Rc4 {[%clk
00:58:28]} {[%emt 00:06:22]} Rad8 {[%clk 00:54:23]} {[%emt 00:02:03]} 26. e4
{[%clk 00:51:51]} {[%emt 00:07:07]} R5d7 {[%clk 00:52:32]} {[%emt 00:02:18]} 27.
Rc6 {[%clk 00:46:01]} {[%emt 00:06:22]} Rd6 {[%clk 00:51:27]} {[%emt 00:01:34]}
28. Ne5 {[%clk 00:40:16]} {[%emt 00:06:16]} f6 {[%clk 00:50:29]} {[%emt
00:01:27]} 29. Rxd6 {[%clk 00:15:13]} {[%emt 00:25:34]} Rxd6 {[%clk 00:50:40]}
{[%emt 00:00:19]} 30. Nc6 {[%clk 00:15:35]} {[%emt 00:00:08]} Rd2 {[%clk
00:44:27]} {[%emt 00:06:41]} 31. Nxa5 {[%clk 00:15:11]} {[%emt 00:00:56]} Ra2
{[%clk 00:44:40]} {[%emt 00:00:17]} 32. Nc6 {[%clk 00:07:39]} {[%emt 00:08:03]}
Nxa4 {[%clk 00:34:59]} {[%emt 00:10:11]} 33. Nb4 {[%clk 00:07:37]} {[%emt
00:00:33]} Rb2 {[%clk 00:29:17]} {[%emt 00:06:11]} 34. Na6 {[%clk 00:06:07]}
{[%emt 00:02:00]} Ra2 {[%clk 00:29:40]} {[%emt 00:00:08]} 35. Rc6 {[%clk
00:03:43]} {[%emt 00:02:53]} Rb2 {[%clk 00:28:20]} {[%emt 00:01:49]} 36. Rc4
{[%clk 00:03:46]} {[%emt 00:00:28]} Ra2 {[%clk 00:28:41]} {[%emt 00:00:08]} 37.
h4 {[%clk 00:03:14]} {[%emt 00:01:03]} h5 {[%clk 00:27:39]} {[%emt 00:01:31]}
38. Nb4 {[%clk 00:02:01]} {[%emt 00:01:43]} Rd2 {[%clk 00:25:54]} {[%emt
00:02:13]} 39. Na6 {[%clk 00:01:01]} {[%emt 00:01:31]} Nb2 {[%clk 00:21:19]}
{[%emt 00:05:06]} 40. Rc6 {[%clk 00:00:36]} {[%emt 00:00:55]} Nd3 {[%clk
00:20:48]} {[%emt 00:01:00]} 41. Rxb6 {[%clk 00:27:06]} {[%emt 00:04:01]} Nxf2
{[%clk 00:49:42]} {[%emt 00:01:35]} 42. Rb8+ {[%clk 00:20:27]} {[%emt
00:07:10]} 1/2-1/2

[Event "Elitserien 2019/2020, round 7-9"]
[Site "Elite stadshotellet, Kungsgatan 6, Vaxjo, Sweden"]
[Date "2020.10.17"]
[Round "2.2"]
[White "Cramling, Pia"]
[Black "Hillarp Persson, Tiger"]
[Result "1/2-1/2"]
[TimeControl "90 minutes for 40 moves + 30 minutes for the rest of the game + 30 seconds per move from move one."]
[WhiteTitle "GM"]
[BlackTitle "GM"]
[WhiteFideId "1700030"]
[BlackFideId "1700812"]
[WhiteElo "2470"]
[BlackElo "2546"]

1. d4 {[%clk 01:29:42]} {[%emt 00:01:17]} Nf6 {[%clk 01:30:28]} {[%emt
00:00:32]} 2. c4 {[%clk 01:28:44]} {[%emt 00:01:27]} g6 {[%clk 01:30:26]}
{[%emt 00:00:33]} 3. Nc3 {[%clk 01:28:47]} {[%emt 00:00:27]} Bg7 {[%clk
01:30:50]} {[%emt 00:00:07]} 4. e4 {[%clk 01:28:31]} {[%emt 00:00:45]} d6
{[%clk 01:31:13]} {[%emt 00:00:07]} 5. h3 {[%clk 01:28:05]} {[%emt 00:00:57]}
O-O {[%clk 01:31:30]} {[%emt 00:00:13]} 6. Be3 {[%clk 01:28:25]} {[%emt
00:00:09]} e5 {[%clk 01:29:36]} {[%emt 00:02:25]} 7. d5 {[%clk 01:28:43]}
{[%emt 00:00:12]} Na6 {[%clk 01:29:54]} {[%emt 00:00:12]} 8. Bd3 {[%clk
01:19:32]} {[%emt 00:09:41]} c6 {[%clk 01:18:30]} {[%emt 00:11:53]} 9. Nge2
{[%clk 01:14:36]} {[%emt 00:05:26]} Bd7 {[%clk 01:14:18]} {[%emt 00:04:43]} 10.
a3 {[%clk 00:58:31]} {[%emt 00:16:36]} cxd5 {[%clk 01:04:32]} {[%emt 00:10:16]}
11. cxd5 {[%clk 00:58:23]} {[%emt 00:00:37]} Nc5 {[%clk 01:04:45]} {[%emt
00:00:18]} 12. Bc2 {[%clk 00:57:46]} {[%emt 00:01:07]} Nh5 {[%clk 01:03:33]}
{[%emt 00:01:42]} 13. O-O {[%clk 00:45:28]} {[%emt 00:12:48]} Rc8 {[%clk
00:55:24]} {[%emt 00:08:39]} 14. Qd2 {[%clk 00:39:58]} {[%emt 00:06:00]} a5
{[%clk 00:47:28]} {[%emt 00:08:26]} 15. b4 {[%clk 00:28:35]} {[%emt 00:11:53]}
axb4 {[%clk 00:45:18]} {[%emt 00:02:41]} 16. axb4 {[%clk 00:29:01]} {[%emt
00:00:04]} Na6 {[%clk 00:45:38]} {[%emt 00:00:10]} 17. Ba4 {[%clk 00:26:50]}
{[%emt 00:02:41]} f5 {[%clk 00:31:06]} {[%emt 00:15:02]} 18. Bg5 {[%clk
00:23:47]} {[%emt 00:03:32]} Qe8 {[%clk 00:24:36]} {[%emt 00:07:00]} 19. Bxd7
{[%clk 00:23:23]} {[%emt 00:00:54]} Qxd7 {[%clk 00:24:59]} {[%emt 00:00:07]} 20.
Na4 {[%clk 00:23:28]} {[%emt 00:00:25]} Qf7 {[%clk 00:23:43]} {[%emt 00:01:46]}
21. Nb6 {[%clk 00:22:56]} {[%emt 00:01:02]} Rc7 {[%clk 00:24:00]} {[%emt
00:00:13]} 22. Rac1 {[%clk 00:21:36]} {[%emt 00:01:50]} f4 {[%clk 00:22:09]}
{[%emt 00:02:22]} 23. f3 {[%clk 00:20:49]} {[%emt 00:01:16]} Bf6 {[%clk
00:22:18]} {[%emt 00:00:21]} 24. Bxf6 {[%clk 00:20:34]} {[%emt 00:00:46]} Nxf6
{[%clk 00:22:39]} {[%emt 00:00:08]} 25. Nc3 {[%clk 00:20:13]} {[%emt 00:00:50]}
Qe8 {[%clk 00:20:25]} {[%emt 00:02:46]} 26. Nca4 {[%clk 00:14:39]} {[%emt
00:06:04]} Qb5 {[%clk 00:17:21]} {[%emt 00:03:34]} 27. Rxc7 {[%clk 00:09:48]}
{[%emt 00:05:21]} Nxc7 {[%clk 00:17:41]} {[%emt 00:00:10]} 28. Qc3 {[%clk
00:08:43]} {[%emt 00:01:33]} Na8 {[%clk 00:17:12]} {[%emt 00:01:00]} 29. Nxa8
{[%clk 00:06:58]} {[%emt 00:02:16]} Rxa8 {[%clk 00:14:34]} {[%emt 00:03:07]} 30.
Nb2 {[%clk 00:07:18]} {[%emt 00:00:10]} Nh5 {[%clk 00:10:52]} {[%emt 00:04:13]}
31. Nd3 {[%clk 00:06:55]} {[%emt 00:00:52]} Ng3 {[%clk 00:09:24]} {[%emt
00:01:59]} 32. Re1 {[%clk 00:07:20]} {[%emt 00:00:05]} Ra2 {[%clk 00:08:16]}
{[%emt 00:01:38]} 33. Kh2 {[%clk 00:05:30]} {[%emt 00:02:20]} Qb6 {[%clk
00:08:06]} {[%emt 00:00:40]} 34. Qc8+ {[%clk 00:03:53]} {[%emt 00:02:08]} Kg7
{[%clk 00:08:26]} {[%emt 00:00:10]} 35. Rc1 {[%clk 00:03:49]} {[%emt 00:00:34]}
Kh6 {[%clk 00:08:28]} {[%emt 00:00:29]} 36. Qf8+ {[%clk 00:02:31]} {[%emt
00:01:47]} Kg5 {[%clk 00:02:30]} {[%emt 00:06:28]} 37. Qe7+ {[%clk 00:02:52]}
{[%emt 00:00:08]} Kh6 {[%clk 00:02:50]} {[%emt 00:00:12]} 38. Qf8+ {[%clk
00:03:02]} {[%emt 00:00:19]} Kg5 {[%clk 00:03:13]} {[%emt 00:00:07]} 39. Qe7+
{[%clk 00:00:37]} {[%emt 00:02:56]} Kh6 {[%clk 00:03:07]} {[%emt 00:00:36]} 40.
Qf8+ {[%clk 00:00:39]} {[%emt 00:00:28]} 1/2-1/2

[Event "Elitserien 2019/2020, round 7-9"]
[Site "Elite stadshotellet, Kungsgatan 6, Vaxjo, Sweden"]
[Date "2020.10.17"]
[Round "2.3"]
[White "Ahlander, Bjorn"]
[Black "Berg, Emanuel"]
[Result "1/2-1/2"]
[TimeControl "90 minutes for 40 moves + 30 minutes for the rest of the game + 30 seconds per move from move one."]
[WhiteTitle "IM"]
[BlackTitle "GM"]
[WhiteFideId "1700251"]
[BlackFideId "1704060"]
[WhiteElo "2418"]
[BlackElo "2544"]

1. d4 {[%clk 01:29:01]} {[%emt 00:01:58]} Nf6 {[%clk 01:29:26]} {[%emt
00:01:34]} 2. c4 {[%clk 01:29:28]} {[%emt 00:00:03]} g6 {[%clk 01:29:44]}
{[%emt 00:00:13]} 3. Nc3 {[%clk 01:29:48]} {[%emt 00:00:10]} Bg7 {[%clk
01:30:08]} {[%emt 00:00:07]} 4. e4 {[%clk 01:30:11]} {[%emt 00:00:05]} d6
{[%clk 01:30:34]} {[%emt 00:00:05]} 5. Nf3 {[%clk 01:30:23]} {[%emt 00:00:16]}
O-O {[%clk 01:30:54]} {[%emt 00:00:12]} 6. Be2 {[%clk 01:30:47]} {[%emt
00:00:05]} e5 {[%clk 01:31:08]} {[%emt 00:00:16]} 7. O-O {[%clk 01:31:06]}
{[%emt 00:00:11]} Nc6 {[%clk 01:31:26]} {[%emt 00:00:13]} 8. dxe5 {[%clk
01:31:06]} {[%emt 00:00:30]} Nxe5 {[%clk 01:09:43]} {[%emt 00:22:12]} 9. Nxe5
{[%clk 01:31:14]} {[%emt 00:00:21]} dxe5 {[%clk 01:07:20]} {[%emt 00:02:55]} 10.
Be3 {[%clk 01:31:39]} {[%emt 00:00:04]} c6 {[%clk 01:02:05]} {[%emt 00:05:45]}
11. Qa4 {[%clk 01:31:52]} {[%emt 00:00:18]} Be6 {[%clk 00:54:02]} {[%emt
00:08:32]} 12. b4 {[%clk 01:23:05]} {[%emt 00:09:16]} Nd7 {[%clk 00:51:31]}
{[%emt 00:03:01]} 13. b5 {[%clk 01:11:39]} {[%emt 00:11:57]} Qc7 {[%clk
00:39:49]} {[%emt 00:12:11]} 14. bxc6 {[%clk 01:07:58]} {[%emt 00:04:12]} bxc6
{[%clk 00:40:11]} {[%emt 00:00:08]} 15. Rab1 {[%clk 01:05:06]} {[%emt
00:03:21]} Rfb8 {[%clk 00:33:38]} {[%emt 00:07:02]} 16. Rxb8+ {[%clk 00:58:59]}
{[%emt 00:06:38]} Rxb8 {[%clk 00:31:33]} {[%emt 00:02:36]} 17. Qxa7 {[%clk
00:54:25]} {[%emt 00:05:03]} Qxa7 {[%clk 00:31:25]} {[%emt 00:00:38]} 18. Bxa7
{[%clk 00:54:52]} {[%emt 00:00:03]} Rb2 {[%clk 00:31:37]} {[%emt 00:00:18]} 19.
Be3 {[%clk 00:34:37]} {[%emt 00:20:45]} Bf8 {[%clk 00:31:56]} {[%emt 00:00:12]}
20. Rb1 {[%clk 00:26:20]} {[%emt 00:08:46]} Rc2 {[%clk 00:32:18]} {[%emt
00:00:08]} 21. Rc1 {[%clk 00:25:07]} {[%emt 00:01:43]} Rxc1+ {[%clk 00:22:46]}
{[%emt 00:10:02]} 22. Bxc1 {[%clk 00:25:33]} {[%emt 00:00:03]} Nb6 {[%clk
00:23:07]} {[%emt 00:00:10]} 23. Bd3 {[%clk 00:16:07]} {[%emt 00:09:56]} Nxc4
{[%clk 00:16:32]} {[%emt 00:07:05]} 24. Kf1 {[%clk 00:15:36]} {[%emt 00:01:00]}
Bb4 {[%clk 00:11:05]} {[%emt 00:05:58]} 25. Nb1 {[%clk 00:15:37]} {[%emt
00:00:29]} f5 {[%clk 00:07:50]} {[%emt 00:03:46]} 26. f3 {[%clk 00:13:53]}
{[%emt 00:02:14]} Kf7 {[%clk 00:06:44]} {[%emt 00:01:36]} 27. Ke2 {[%clk
00:13:29]} {[%emt 00:00:54]} fxe4 {[%clk 00:03:26]} {[%emt 00:03:49]} 28. Bxe4
{[%clk 00:12:26]} {[%emt 00:01:32]} Nd6 {[%clk 00:03:02]} {[%emt 00:00:54]} 29.
a3 {[%clk 00:12:31]} {[%emt 00:00:25]} Nxe4 {[%clk 00:03:20]} {[%emt 00:00:12]}
30. axb4 {[%clk 00:12:36]} {[%emt 00:00:25]} Ba2 {[%clk 00:02:50]} {[%emt
00:01:00]} 31. fxe4 {[%clk 00:12:25]} {[%emt 00:00:41]} Bxb1 {[%clk 00:03:14]}
{[%emt 00:00:06]} 32. Ke3 {[%clk 00:12:12]} {[%emt 00:00:42]} g5 {[%clk
00:02:54]} {[%emt 00:00:51]} 33. Bb2 {[%clk 00:11:13]} {[%emt 00:01:29]} Kf6
{[%clk 00:03:07]} {[%emt 00:00:17]} 34. g3 {[%clk 00:11:01]} {[%emt 00:00:42]}
h5 {[%clk 00:03:19]} {[%emt 00:00:17]} 35. h4 {[%clk 00:11:00]} {[%emt
00:00:31]} g4 {[%clk 00:03:40]} {[%emt 00:00:10]} 36. Bc3 {[%clk 00:11:21]}
{[%emt 00:00:09]} Ke6 {[%clk 00:03:48]} {[%emt 00:00:22]} 37. Bb2 {[%clk
00:11:44]} {[%emt 00:00:07]} Kf6 {[%clk 00:04:05]} {[%emt 00:00:14]} 38. Bc3
{[%clk 00:12:07]} {[%emt 00:00:06]} Ke6 {[%clk 00:04:30]} {[%emt 00:00:05]}
1/2-1/2

[Event "Elitserien 2019/2020, round 7-9"]
[Site "Elite stadshotellet, Kungsgatan 6, Vaxjo, Sweden"]
[Date "2020.10.17"]
[Round "2.4"]
[White "Moreau, Teodor"]
[Black "Smith, Axel"]
[Result "0-1"]
[TimeControl "90 minutes for 40 moves + 30 minutes for the rest of the game + 30 seconds per move from move one."]
[WhiteTitle "FM"]
[BlackTitle "GM"]
[WhiteFideId "1701177"]
[BlackFideId "1707930"]
[WhiteElo "2342"]
[BlackElo "2469"]

1. d4 {[%clk 01:30:49]} {[%emt 00:00:10]} e6 {[%clk 01:30:58]} {[%emt
00:00:03]} 2. Nf3 {[%clk 01:28:13]} {[%emt 00:03:07]} c5 {[%clk 01:29:17]}
{[%emt 00:02:11]} 3. c4 {[%clk 01:22:30]} {[%emt 00:06:12]} cxd4 {[%clk
01:29:42]} {[%emt 00:00:06]} 4. Nxd4 {[%clk 01:22:54]} {[%emt 00:00:05]} Nf6
{[%clk 01:29:33]} {[%emt 00:00:39]} 5. Nc3 {[%clk 01:20:37]} {[%emt 00:02:46]}
Nc6 {[%clk 01:29:56]} {[%emt 00:00:08]} 6. g3 {[%clk 01:14:31]} {[%emt
00:06:37]} Qb6 {[%clk 01:27:04]} {[%emt 00:03:22]} 7. Nb3 {[%clk 01:07:27]}
{[%emt 00:07:33]} Ne5 {[%clk 01:21:31]} {[%emt 00:06:03]} 8. e4 {[%clk
00:57:19]} {[%emt 00:10:38]} Bb4 {[%clk 01:17:37]} {[%emt 00:04:25]} 9. Qe2
{[%clk 00:54:28]} {[%emt 00:03:21]} d6 {[%clk 01:10:25]} {[%emt 00:07:42]} 10.
f4 {[%clk 00:47:12]} {[%emt 00:07:47]} Nc6 {[%clk 01:10:24]} {[%emt 00:00:31]}
11. Be3 {[%clk 00:46:54]} {[%emt 00:00:46]} Bxc3+ {[%clk 01:06:17]} {[%emt
00:04:38]} 12. bxc3 {[%clk 00:47:14]} {[%emt 00:00:09]} Qc7 {[%clk 01:06:39]}
{[%emt 00:00:08]} 13. Bg2 {[%clk 00:38:00]} {[%emt 00:09:44]} e5 {[%clk
00:59:01]} {[%emt 00:08:10]} 14. c5 {[%clk 00:35:41]} {[%emt 00:02:47]} dxc5
{[%clk 00:55:01]} {[%emt 00:04:31]} 15. Nxc5 {[%clk 00:28:10]} {[%emt
00:08:01]} b6 {[%clk 00:41:31]} {[%emt 00:14:00]} 16. Na6 {[%clk 00:27:21]}
{[%emt 00:01:18]} Qe7 {[%clk 00:37:44]} {[%emt 00:04:18]} 17. f5 {[%clk
00:16:12]} {[%emt 00:11:39]} Bb7 {[%clk 00:37:15]} {[%emt 00:00:58]} 18. O-O
{[%clk 00:14:07]} {[%emt 00:02:36]} Rc8 {[%clk 00:35:29]} {[%emt 00:02:16]} 19.
Bd2 {[%clk 00:11:55]} {[%emt 00:02:43]} Qa3 {[%clk 00:22:49]} {[%emt 00:13:10]}
20. Nb4 {[%clk 00:10:54]} {[%emt 00:01:30]} Nxb4 {[%clk 00:23:17]} {[%emt
00:00:02]} 21. cxb4 {[%clk 00:11:15]} {[%emt 00:00:09]} Ba6 {[%clk 00:23:33]}
{[%emt 00:00:15]} 22. b5 {[%clk 00:10:59]} {[%emt 00:00:45]} Qc5+ {[%clk
00:22:04]} {[%emt 00:01:59]} 23. Be3 {[%clk 00:09:47]} {[%emt 00:01:41]} Qxb5
{[%clk 00:21:07]} {[%emt 00:01:28]} 24. Qxb5+ {[%clk 00:05:13]} {[%emt
00:05:04]} Bxb5 {[%clk 00:21:36]} {[%emt 00:00:01]} 25. Rfb1 {[%clk 00:05:27]}
{[%emt 00:00:17]} Bd3 {[%clk 00:17:49]} {[%emt 00:04:16]} 26. Rb4 {[%clk
00:05:50]} {[%emt 00:00:06]} O-O {[%clk 00:12:33]} {[%emt 00:05:46]} 27. a4
{[%clk 00:02:39]} {[%emt 00:03:42]} Rfd8 {[%clk 00:09:49]} {[%emt 00:03:14]} 28.
h3 {[%clk 00:02:53]} {[%emt 00:00:16]} a5 {[%clk 00:05:28]} {[%emt 00:04:51]}
29. Rxb6 {[%clk 00:03:17]} {[%emt 00:00:06]} Bxe4 {[%clk 00:05:49]} {[%emt
00:00:09]} 30. Rb2 {[%clk 00:01:35]} {[%emt 00:02:12]} Rd3 {[%clk 00:05:13]}
{[%emt 00:01:06]} 31. Bf2 {[%clk 00:01:23]} {[%emt 00:00:42]} Bxg2 {[%clk
00:01:51]} {[%emt 00:03:52]} 32. Kxg2 {[%clk 00:01:48]} {[%emt 00:00:05]} h5
{[%clk 00:01:29]} {[%emt 00:00:53]} 33. Raa2 {[%clk 00:01:35]} {[%emt
00:00:42]} Ne4 {[%clk 00:01:37]} {[%emt 00:00:22]} 34. Be1 {[%clk 00:01:30]}
{[%emt 00:00:35]} Rc1 {[%clk 00:01:06]} {[%emt 00:01:02]} 35. Re2 {[%clk
00:01:42]} {[%emt 00:00:17]} Nc3 {[%clk 00:01:18]} {[%emt 00:00:19]} 36. Bxc3
{[%clk 00:01:23]} {[%emt 00:00:49]} Rcxc3 {[%clk 00:01:47]} {[%emt 00:00:01]}
37. Rxe5 {[%clk 00:01:39]} {[%emt 00:00:13]} Rxg3+ {[%clk 00:02:16]} {[%emt
00:00:02]} 38. Kf1 {[%clk 00:01:47]} {[%emt 00:00:23]} Rc1+ {[%clk 00:01:45]}
{[%emt 00:01:00]} 39. Kf2 {[%clk 00:01:59]} {[%emt 00:00:18]} Rxh3 {[%clk
00:01:57]} {[%emt 00:00:18]} 40. Kg2 {[%clk 00:01:44]} {[%emt 00:00:44]} Rch1
{[%clk 00:01:29]} {[%emt 00:00:57]} 41. Rf2 {[%clk 00:30:00]} {[%emt 00:02:14]}
Kh7 {[%clk 00:12:56]} {[%emt 00:19:04]} 42. Rxa5 {[%clk 00:26:29]} {[%emt
00:04:00]} Kh6 {[%clk 00:12:47]} {[%emt 00:00:40]} 43. Ra7 {[%clk 00:19:03]}
{[%emt 00:07:55]} f6 {[%clk 00:12:31]} {[%emt 00:00:47]} 44. Ra8 {[%clk
00:12:06]} {[%emt 00:07:26]} R1h2+ {[%clk 00:06:42]} {[%emt 00:06:19]} 45. Kg1
{[%clk 00:11:07]} {[%emt 00:01:29]} Rxf2 {[%clk 00:07:08]} {[%emt 00:00:05]} 46.
Kxf2 {[%clk 00:11:22]} {[%emt 00:00:14]} Rc3 {[%clk 00:07:29]} {[%emt
00:00:09]} 47. Rh8+ {[%clk 00:10:01]} {[%emt 00:01:50]} Kg5 {[%clk 00:07:55]}
{[%emt 00:00:05]} 48. Rh7 {[%clk 00:10:19]} {[%emt 00:00:11]} Rc7 {[%clk
00:07:35]} {[%emt 00:00:50]} 49. Rh8 {[%clk 00:01:00]} {[%emt 00:09:49]} Ra7
{[%clk 00:07:21]} {[%emt 00:00:43]} 50. Rb8 {[%clk 00:01:18]} {[%emt 00:00:13]}
Kxf5 {[%clk 00:03:44]} {[%emt 00:04:08]} 51. Rb5+ {[%clk 00:01:36]} {[%emt
00:00:09]} Kg4 {[%clk 00:03:54]} {[%emt 00:00:23]} 52. a5 {[%clk 00:01:08]}
{[%emt 00:00:57]} f5 {[%clk 00:03:30]} {[%emt 00:00:55]} 53. Rb6 {[%clk
00:00:43]} {[%emt 00:00:55]} f4 {[%clk 00:02:45]} {[%emt 00:01:14]} 54. a6
{[%clk 00:00:43]} {[%emt 00:00:31]} g5 {[%clk 00:02:30]} {[%emt 00:00:45]} 55.
Kg2 {[%clk 00:00:43]} {[%emt 00:00:29]} Kh4 {[%clk 00:01:04]} {[%emt 00:01:56]}
56. Kf3 {[%clk 00:01:00]} {[%emt 00:00:12]} Rf7 {[%clk 00:01:08]} {[%emt
00:00:26]} 57. Rb7 {[%clk 00:00:42]} {[%emt 00:00:48]} Rf6 {[%clk 00:01:03]}
{[%emt 00:00:35]} 58. a7 {[%clk 00:00:34]} {[%emt 00:00:38]} Ra6 {[%clk
00:01:32]} {[%emt 00:00:01]} 59. Rf7 {[%clk 00:00:45]} {[%emt 00:00:18]} Ra3+
{[%clk 00:01:52]} {[%emt 00:00:10]} 60. Ke4 {[%clk 00:00:34]} {[%emt 00:00:41]}
Kg4 {[%clk 00:01:23]} {[%emt 00:01:00]} 61. Kd5 {[%clk 00:00:31]} {[%emt
00:00:30]} h4 {[%clk 00:01:28]} {[%emt 00:00:28]} 0-1